[Event "December 19 Late 2023"]
[Site "https://www.chess.com"]
[Date "2023.12.19"]
[Round "4"]
[White "Rose, Felix"]
[Black "Gutierrez Olivares, Daniel"]
[Result "1-0"]
[Board "137"]
[TimeControl "180+1"]
[WhiteFideId "5105722"]
[BlackFideId "2264005"]
[WhiteElo "2039"]
[BlackElo "2317"]
[WhiteTeam "MEX"]
[BlackTeam "ESP"]
[WhiteClock "0:00:29"]
[BlackClock "0:00:00"]

1. Nf3 {[%clk 0:03:00]}  Nf6 {[%clk 0:02:55]} 2. b3 {[%clk 0:03:00]}  e6 {[%clk 0:02:55]} 3. Bb2 {[%clk 0:03:01]}  d5 {[%clk 0:02:56]} 4. e3 {[%clk 0:03:00]}  Be7 {[%clk 0:02:55]} 5. Be2 {[%clk 0:03:00]}  a6 {[%clk 0:02:54]} 6. O-O {[%clk 0:03:01]}  b5 {[%clk 0:02:54]} 7. a4 {[%clk 0:03:01]}  b4 {[%clk 0:02:54]} 8. a5 {[%clk 0:03:01]}  c5 {[%clk 0:02:53]} 9. c4 {[%clk 0:03:01]}  Bb7 {[%clk 0:02:52]} 10. d4 {[%clk 0:03:01]}  Nc6 {[%clk 0:02:51]} 11. Nbd2 {[%clk 0:02:58]}  Nxa5 {[%clk 0:02:46]} 12. dxc5 {[%clk 0:02:55]}  Bxc5 {[%clk 0:02:43]} 13. Bxf6 {[%clk 0:02:54]}  gxf6 {[%clk 0:02:39]} 14. cxd5 {[%clk 0:02:54]}  Bxd5 {[%clk 0:02:37]} 15. Nc4 {[%clk 0:02:51]}  Nxc4 {[%clk 0:02:31]} 16. bxc4 {[%clk 0:02:51]}  Bc6 {[%clk 0:02:18]} 17. Nd4 {[%clk 0:02:40]}  Bd7 {[%clk 0:02:04]} 18. Bf3 {[%clk 0:02:38]}  Ra7 {[%clk 0:01:58]} 19. Nb3 {[%clk 0:02:38]}  Qb6 {[%clk 0:01:52]} 20. Na5 {[%clk 0:02:22]}  Rc7 {[%clk 0:01:41]} 21. Qd3 {[%clk 0:02:18]}  Ke7 {[%clk 0:01:20]} 22. Rfd1 {[%clk 0:02:17]}  Rhc8 {[%clk 0:01:20]} 23. Qxh7 {[%clk 0:02:12]}  b3 {[%clk 0:01:10]} 24. Rdb1 {[%clk 0:02:02]}  Bb4 {[%clk 0:00:52]} 25. Rxb3 {[%clk 0:01:53]}  Qc5 {[%clk 0:00:53]} 26. Nb7 {[%clk 0:01:48]}  Qe5 {[%clk 0:00:44]} 27. Rbb1 {[%clk 0:01:38]}  Rxc4 {[%clk 0:00:36]} 28. h4 {[%clk 0:01:34]}  Bb5 {[%clk 0:00:20]} 29. Rd1 {[%clk 0:01:25]}  Bc6 {[%clk 0:00:12]} 30. Bxc6 {[%clk 0:01:19]}  R4xc6 {[%clk 0:00:11]} 31. g3 {[%clk 0:01:16]}  Rb6 {[%clk 0:00:10]} 32. Qd3 {[%clk 0:00:54]}  Rxb7 {[%clk 0:00:09]} 33. Rxa6 {[%clk 0:00:54]}  Qc7 {[%clk 0:00:08]} 34. Raa1 {[%clk 0:00:51]}  Bc5 {[%clk 0:00:08]} 35. Rac1 {[%clk 0:00:50]}  Rb6 {[%clk 0:00:06]} 36. Rc4 {[%clk 0:00:50]}  Rd6 {[%clk 0:00:06]} 37. Qb1 {[%clk 0:00:48]}  Rb8 {[%clk 0:00:05]} 38. Qc1 {[%clk 0:00:47]}  Rxd1+ {[%clk 0:00:05]} 39. Qxd1 {[%clk 0:00:48]}  Qe5 {[%clk 0:00:05]} 40. Qc1 {[%clk 0:00:44]}  Bd6 {[%clk 0:00:05]} 41. Ra4 {[%clk 0:00:36]}  Qf5 {[%clk 0:00:05]} 42. Ra7+ {[%clk 0:00:36]}  Kf8 {[%clk 0:00:06]} 43. Ra1 {[%clk 0:00:34]}  Qg4 {[%clk 0:00:05]} 44. Qd1 {[%clk 0:00:32]}  Qg6 {[%clk 0:00:04]} 45. Qxd6+ {[%clk 0:00:33]}  Kg7 {[%clk 0:00:05]} 46. Qxb8 {[%clk 0:00:33]}  Qc2 {[%clk 0:00:05]} 47. Qb1 {[%clk 0:00:33]}  Qc3 {[%clk 0:00:05]} 48. Qc1 {[%clk 0:00:34]}  Qd3 {[%clk 0:00:05]} 49. Qd1 {[%clk 0:00:34]}  Qc3 {[%clk 0:00:06]} 50. Rc1 {[%clk 0:00:34]}  Qe5 {[%clk 0:00:06]} 51. Kg2 {[%clk 0:00:34]}  Qe4+ {[%clk 0:00:06]} 52. Qf3 {[%clk 0:00:35]}  Qa4 {[%clk 0:00:05]} 53. Kh3 {[%clk 0:00:32]}  Qa3 {[%clk 0:00:06]} 54. Rc4 {[%clk 0:00:32]}  f5 {[%clk 0:00:06]} 55. Qf4 {[%clk 0:00:30]}  Qa6 {[%clk 0:00:06]} 56. Qg5+ {[%clk 0:00:31]}  Kh7 {[%clk 0:00:05]} 57. Rf4 {[%clk 0:00:29]}  Qf1+ {[%clk 0:00:03]} 58. Kh2 {[%clk 0:00:29]}  Qd3 {[%clk 0:00:00]} 59. h5 {[%clk 0:00:29]} 1-0

[Event "December 19 Late 2023"]
[Site "https://www.chess.com"]
[Date "2023.12.19"]
[Round "4"]
[White "Michalski, Olaf"]
[Black "Liu, Casper"]
[Result "0-1"]
[Board "138"]
[TimeControl "180+1"]
[WhiteFideId "1106740"]
[BlackFideId "1454153"]
[WhiteElo "2105"]
[BlackElo "2221"]
[WhiteTeam "POL"]
[BlackTeam "DEN"]
[WhiteClock "0:00:00"]
[BlackClock "0:01:13"]

1. d4 {[%clk 0:02:58]}  f5 {[%clk 0:02:59]} 2. g3 {[%clk 0:02:57]}  Nf6 {[%clk 0:02:59]} 3. Bg2 {[%clk 0:02:57]}  e6 {[%clk 0:03:00]} 4. Nf3 {[%clk 0:02:53]}  g6 {[%clk 0:03:01]} 5. O-O {[%clk 0:02:52]}  Bg7 {[%clk 0:03:02]} 6. Nbd2 {[%clk 0:02:40]}  O-O {[%clk 0:03:02]} 7. Re1 {[%clk 0:02:39]}  Nc6 {[%clk 0:02:59]} 8. e4 {[%clk 0:02:28]}  d6 {[%clk 0:02:37]} 9. c3 {[%clk 0:01:55]}  e5 {[%clk 0:02:23]} 10. exf5 {[%clk 0:01:41]}  Bxf5 {[%clk 0:02:17]} 11. dxe5 {[%clk 0:01:31]}  dxe5 {[%clk 0:02:18]} 12. Qb3+ {[%clk 0:01:29]}  Kh8 {[%clk 0:02:15]} 13. Qxb7 {[%clk 0:01:29]}  Qd7 {[%clk 0:01:58]} 14. Nxe5 {[%clk 0:00:56]}  Nxe5 {[%clk 0:01:57]} 15. Rxe5 {[%clk 0:00:57]}  Ng4 {[%clk 0:01:52]} 16. Re2 {[%clk 0:00:17]}  Bd3 {[%clk 0:01:34]} 17. Re1 {[%clk 0:00:12]}  Rae8 {[%clk 0:01:20]} 18. Nf3 {[%clk 0:00:00]}  Rxf3 {[%clk 0:01:13]} 0-1

[Event "December 19 Late 2023"]
[Site "https://www.chess.com"]
[Date "2023.12.19"]
[Round "4"]
[White "Novikova, Margarita"]
[Black "Spichkin, Alexander"]
[Result "0-1"]
[Board "145"]
[TimeControl "180+1"]
[WhiteFideId "14109689"]
[BlackFideId "4144074"]
[WhiteElo "2090"]
[BlackElo "1955"]
[WhiteTeam "GER"]
[BlackTeam "RUS"]
[WhiteClock "0:01:36"]
[BlackClock "0:02:32"]

1. e4 {[%clk 0:02:56]}  e5 {[%clk 0:02:58]} 2. Nf3 {[%clk 0:02:56]}  d5 {[%clk 0:02:58]} 3. exd5 {[%clk 0:02:55]}  e4 {[%clk 0:02:56]} 4. Ne5 {[%clk 0:02:54]}  Qxd5 {[%clk 0:02:55]} 5. d4 {[%clk 0:02:55]}  exd3 {[%clk 0:02:56]} 6. Nxd3 {[%clk 0:02:55]}  Nc6 {[%clk 0:02:56]} 7. Nc3 {[%clk 0:02:55]}  Bb4 {[%clk 0:02:57]} 8. Bd2 {[%clk 0:02:54]}  Bxc3 {[%clk 0:02:55]} 9. Bxc3 {[%clk 0:02:54]}  Nf6 {[%clk 0:02:56]} 10. Qe2+ {[%clk 0:02:51]}  Be6 {[%clk 0:02:55]} 11. Nf4 {[%clk 0:02:47]}  Qf5 {[%clk 0:02:54]} 12. Nxe6 {[%clk 0:02:45]}  fxe6 {[%clk 0:02:54]} 13. O-O-O {[%clk 0:02:42]}  Nd5 {[%clk 0:02:53]} 14. Bxg7 {[%clk 0:02:35]}  Rg8 {[%clk 0:02:51]} 15. Bh6 {[%clk 0:02:25]}  O-O-O {[%clk 0:02:50]} 16. h4 {[%clk 0:02:11]}  Ncb4 {[%clk 0:02:48]} 17. a3 {[%clk 0:02:03]}  Na2+ {[%clk 0:02:42]} 18. Kd2 {[%clk 0:01:44]}  Nf4+ {[%clk 0:02:35]} 19. Qd3 {[%clk 0:01:35]}  Nxd3 {[%clk 0:02:32]} 20. Bxd3 {[%clk 0:01:36]}  Qxf2# {[%clk 0:02:32]} 0-1

[Event "December 19 Late 2023"]
[Site "https://www.chess.com"]
[Date "2023.12.19"]
[Round "4"]
[White "Bogaudinov, Rushan"]
[Black "Hernandez Santos, David Ale"]
[Result "0-1"]
[Board "149"]
[TimeControl "180+1"]
[WhiteFideId "4129288"]
[BlackFideId "5132002"]
[WhiteElo "1937"]
[BlackElo "1553"]
[WhiteTeam "RUS"]
[BlackTeam "MEX"]
[WhiteClock "0:00:24"]
[BlackClock "0:00:06"]

1. a3 {[%clk 0:02:17]}  e6 {[%clk 0:02:58]} 2. e3 {[%clk 0:02:17]}  Nf6 {[%clk 0:02:59]} 3. d4 {[%clk 0:02:17]}  d5 {[%clk 0:02:59]} 4. Nf3 {[%clk 0:02:17]}  Be7 {[%clk 0:03:00]} 5. c4 {[%clk 0:02:17]}  O-O {[%clk 0:02:58]} 6. Nc3 {[%clk 0:02:18]}  b6 {[%clk 0:02:57]} 7. b4 {[%clk 0:02:18]}  a5 {[%clk 0:02:56]} 8. b5 {[%clk 0:02:17]}  c6 {[%clk 0:02:55]} 9. bxc6 {[%clk 0:02:17]}  Nxc6 {[%clk 0:02:53]} 10. Bb2 {[%clk 0:02:15]}  dxc4 {[%clk 0:02:35]} 11. Bxc4 {[%clk 0:02:14]}  Ba6 {[%clk 0:02:35]} 12. Bxa6 {[%clk 0:02:14]}  Rxa6 {[%clk 0:02:36]} 13. O-O {[%clk 0:02:14]}  Qd7 {[%clk 0:02:08]} 14. Qe2 {[%clk 0:02:13]}  Raa8 {[%clk 0:02:07]} 15. Rfc1 {[%clk 0:02:13]}  Nd5 {[%clk 0:02:04]} 16. h3 {[%clk 0:02:11]}  Bd6 {[%clk 0:01:59]} 17. Ne4 {[%clk 0:02:11]}  Nce7 {[%clk 0:01:57]} 18. Rab1 {[%clk 0:02:10]}  f5 {[%clk 0:01:55]} 19. Nxd6 {[%clk 0:02:03]}  Qxd6 {[%clk 0:01:56]} 20. a4 {[%clk 0:02:02]}  Rfc8 {[%clk 0:01:54]} 21. Ne5 {[%clk 0:02:00]}  Nc6 {[%clk 0:01:49]} 22. Nc4 {[%clk 0:01:55]}  Qb8 {[%clk 0:01:44]} 23. Ba3 {[%clk 0:01:49]}  Ndb4 {[%clk 0:01:40]} 24. Qd2 {[%clk 0:01:44]}  b5 {[%clk 0:01:30]} 25. axb5 {[%clk 0:01:43]}  Ne7 {[%clk 0:01:02]} 26. Bxb4 {[%clk 0:01:41]}  axb4 {[%clk 0:01:02]} 27. Qxb4 {[%clk 0:01:40]}  Nd5 {[%clk 0:01:03]} 28. Qb3 {[%clk 0:01:38]}  Ra7 {[%clk 0:00:56]} 29. Ne5 {[%clk 0:01:37]}  Rxc1+ {[%clk 0:00:54]} 30. Rxc1 {[%clk 0:01:37]}  Rb7 {[%clk 0:00:55]} 31. Rc5 {[%clk 0:01:37]}  Kf8 {[%clk 0:00:48]} 32. g4 {[%clk 0:01:28]}  g6 {[%clk 0:00:48]} 33. Rxd5 {[%clk 0:01:22]}  exd5 {[%clk 0:00:47]} 34. Qxd5 {[%clk 0:01:23]}  Qc7 {[%clk 0:00:25]} 35. g5 {[%clk 0:01:21]}  Qc1+ {[%clk 0:00:21]} 36. Kg2 {[%clk 0:01:21]}  Qc7 {[%clk 0:00:21]} 37. h4 {[%clk 0:01:21]}  Qe7 {[%clk 0:00:17]} 38. b6 {[%clk 0:01:15]}  Kg7 {[%clk 0:00:15]} 39. Nc6 {[%clk 0:01:08]}  Qd7 {[%clk 0:00:14]} 40. Qe5+ {[%clk 0:01:07]}  Kg8 {[%clk 0:00:10]} 41. Qf6 {[%clk 0:00:59]}  Qf7 {[%clk 0:00:04]} 42. Qd8+ {[%clk 0:00:56]}  Kg7 {[%clk 0:00:03]} 43. Ne5 {[%clk 0:00:50]}  Qe7 {[%clk 0:00:02]} 44. Qxe7+ {[%clk 0:00:50]}  Rxe7 {[%clk 0:00:02]} 45. d5 {[%clk 0:00:49]}  Rxe5 {[%clk 0:00:02]} 46. b7 {[%clk 0:00:49]}  Re8 {[%clk 0:00:02]} 47. Kf3 {[%clk 0:00:34]}  Kf7 {[%clk 0:00:03]} 48. Kf4 {[%clk 0:00:35]}  Ke7 {[%clk 0:00:03]} 49. Ke5 {[%clk 0:00:35]}  Kd7+ {[%clk 0:00:04]} 50. Kf6 {[%clk 0:00:35]}  Kd6 {[%clk 0:00:04]} 51. Kg7 {[%clk 0:00:34]}  Re7+ {[%clk 0:00:04]} 52. Kh6 {[%clk 0:00:30]}  Rxb7 {[%clk 0:00:04]} 53. f3 {[%clk 0:00:30]}  Kxd5 {[%clk 0:00:03]} 54. h5 {[%clk 0:00:31]}  gxh5 {[%clk 0:00:02]} 55. Kxh5 {[%clk 0:00:32]}  Ke5 {[%clk 0:00:03]} 56. Kh6 {[%clk 0:00:32]}  Rb6+ {[%clk 0:00:01]} 57. Kxh7 {[%clk 0:00:32]}  f4 {[%clk 0:00:01]} 58. e4 {[%clk 0:00:30]}  Ke6 {[%clk 0:00:01]} 59. g6 {[%clk 0:00:30]}  Rb7+ {[%clk 0:00:01]} 60. Kh6 {[%clk 0:00:20]}  Kf6 {[%clk 0:00:02]} 61. Kh5 {[%clk 0:00:19]}  Rg7 {[%clk 0:00:02]} 62. Kg4 {[%clk 0:00:19]}  Rxg6+ {[%clk 0:00:02]} 63. Kxf4 {[%clk 0:00:20]}  Ke6 {[%clk 0:00:03]} 64. Ke3 {[%clk 0:00:20]}  Rg8 {[%clk 0:00:04]} 65. Kf4 {[%clk 0:00:21]}  Rf8+ {[%clk 0:00:04]} 66. Ke3 {[%clk 0:00:21]}  Ke5 {[%clk 0:00:05]} 67. Ke2 {[%clk 0:00:21]}  Kf4 {[%clk 0:00:05]} 68. Kd3 {[%clk 0:00:21]}  Rd8+ {[%clk 0:00:06]} 69. Kc4 {[%clk 0:00:21]}  Kxf3 {[%clk 0:00:06]} 70. e5 {[%clk 0:00:22]}  Ke4 {[%clk 0:00:05]} 71. e6 {[%clk 0:00:22]}  Ke5 {[%clk 0:00:03]} 72. Kc5 {[%clk 0:00:23]}  Re8 {[%clk 0:00:04]} 73. e7 {[%clk 0:00:22]}  Rxe7 {[%clk 0:00:03]} 74. Kc6 {[%clk 0:00:23]}  Re6+ {[%clk 0:00:04]} 75. Kc5 {[%clk 0:00:23]}  Re7 {[%clk 0:00:04]} 76. Kc4 {[%clk 0:00:24]}  Rh7 {[%clk 0:00:05]} 77. Kd3 {[%clk 0:00:24]}  Kd5 {[%clk 0:00:05]} 78. Ke3 {[%clk 0:00:25]}  Rf7 {[%clk 0:00:05]} 79. Ke2 {[%clk 0:00:25]}  Ke4 {[%clk 0:00:05]} 80. Kd2 {[%clk 0:00:26]}  Rc7 {[%clk 0:00:06]} 81. Ke2 {[%clk 0:00:24]}  Rc2+ {[%clk 0:00:05]} 82. Kd1 {[%clk 0:00:24]}  Kd3 {[%clk 0:00:06]} 83. Ke1 {[%clk 0:00:24]}  Ke3 {[%clk 0:00:06]} 84. Kd1 {[%clk 0:00:25]}  Rc7 {[%clk 0:00:06]} 85. Ke1 {[%clk 0:00:24]}  Rc1# {[%clk 0:00:06]} 0-1

[Event "December 19 Late 2023"]
[Site "https://www.chess.com"]
[Date "2023.12.19"]
[Round "4"]
[White "Argandona Riveiro, Inigo"]
[Black "Gumugama"]
[Result "1-0"]
[Board "151"]
[TimeControl "180+1"]
[WhiteFideId "2212072"]
[WhiteElo "2391"]
[BlackElo "2205"]
[WhiteTeam "ESP"]
[WhiteClock "0:00:11"]
[BlackClock "0:00:39"]

1. Nf3 {[%clk 0:03:00]}  Nf6 {[%clk 0:02:58]} 2. c4 {[%clk 0:03:01]}  g6 {[%clk 0:02:58]} 3. Nc3 {[%clk 0:03:01]}  Bg7 {[%clk 0:02:58]} 4. e4 {[%clk 0:03:02]}  d6 {[%clk 0:02:58]} 5. d4 {[%clk 0:03:03]}  O-O {[%clk 0:02:59]} 6. Be3 {[%clk 0:03:04]}  Nc6 {[%clk 0:02:55]} 7. Be2 {[%clk 0:03:03]}  Bg4 {[%clk 0:02:54]} 8. d5 {[%clk 0:02:58]}  Bxf3 {[%clk 0:02:51]} 9. gxf3 {[%clk 0:02:59]}  Ne5 {[%clk 0:02:48]} 10. f4 {[%clk 0:02:58]}  Ned7 {[%clk 0:02:48]} 11. h4 {[%clk 0:02:57]}  h5 {[%clk 0:02:44]} 12. Qc2 {[%clk 0:02:49]}  c6 {[%clk 0:02:41]} 13. O-O-O {[%clk 0:02:49]}  cxd5 {[%clk 0:02:39]} 14. exd5 {[%clk 0:02:38]}  a6 {[%clk 0:02:36]} 15. f5 {[%clk 0:02:37]}  b5 {[%clk 0:02:27]} 16. fxg6 {[%clk 0:02:35]}  bxc4 {[%clk 0:02:23]} 17. gxf7+ {[%clk 0:02:19]}  Rxf7 {[%clk 0:02:22]} 18. Rhg1 {[%clk 0:02:18]}  Kf8 {[%clk 0:02:20]} 19. Bxc4 {[%clk 0:02:10]}  Ne5 {[%clk 0:02:17]} 20. Bd3 {[%clk 0:02:07]}  Nxd3+ {[%clk 0:02:09]} 21. Qxd3 {[%clk 0:02:08]}  Qa5 {[%clk 0:02:04]} 22. Qg6 {[%clk 0:01:53]}  Rb8 {[%clk 0:01:43]} 23. Bh6 {[%clk 0:01:48]}  Bxh6+ {[%clk 0:01:43]} 24. Qxh6+ {[%clk 0:01:49]}  Ke8 {[%clk 0:01:44]} 25. Rg7 {[%clk 0:01:20]}  Qb4 {[%clk 0:01:32]} 26. Rd2 {[%clk 0:01:16]}  Rxg7 {[%clk 0:01:27]} 27. Qxg7 {[%clk 0:01:15]}  Rb7 {[%clk 0:01:12]} 28. Re2 {[%clk 0:00:49]}  Qf4+ {[%clk 0:01:11]} 29. Kb1 {[%clk 0:00:40]}  Qxh4 {[%clk 0:00:57]} 30. a3 {[%clk 0:00:35]}  Qg4 {[%clk 0:00:54]} 31. Qxf6 {[%clk 0:00:29]}  Rxb2+ {[%clk 0:00:39]} 32. Kxb2 {[%clk 0:00:23]}  Qxe2+ {[%clk 0:00:39]} 33. Nxe2 {[%clk 0:00:24]}  exf6 {[%clk 0:00:39]} 34. Nf4 {[%clk 0:00:21]}  h4 {[%clk 0:00:39]} 35. Kc3 {[%clk 0:00:15]}  f5 {[%clk 0:00:40]} 36. Kb4 {[%clk 0:00:14]}  Kf7 {[%clk 0:00:40]} 37. Ka5 {[%clk 0:00:14]}  Kf6 {[%clk 0:00:41]} 38. Nh3 {[%clk 0:00:11]}  Ke5 {[%clk 0:00:42]} 39. Kxa6 {[%clk 0:00:09]}  Kf6 {[%clk 0:00:43]} 40. Kb6 {[%clk 0:00:09]}  Ke5 {[%clk 0:00:43]} 41. a4 {[%clk 0:00:10]}  Kxd5 {[%clk 0:00:44]} 42. a5 {[%clk 0:00:10]}  Ke4 {[%clk 0:00:42]} 43. a6 {[%clk 0:00:11]}  Kf3 {[%clk 0:00:42]} 44. a7 {[%clk 0:00:12]}  Kg2 {[%clk 0:00:41]} 45. a8=Q+ {[%clk 0:00:13]}  Kxh3 {[%clk 0:00:41]} 46. Qh1+ {[%clk 0:00:13]}  Kg4 {[%clk 0:00:41]} 47. Kc6 {[%clk 0:00:13]}  f4 {[%clk 0:00:41]} 48. Kxd6 {[%clk 0:00:13]}  f3 {[%clk 0:00:41]} 49. Ke5 {[%clk 0:00:12]}  h3 {[%clk 0:00:42]} 50. Ke4 {[%clk 0:00:12]}  Kh4 {[%clk 0:00:41]} 51. Qxf3 {[%clk 0:00:11]}  h2 {[%clk 0:00:39]} 52. Qg3+ {[%clk 0:00:11]} 1-0

[Event "December 19 Late 2023"]
[Site "https://www.chess.com"]
[Date "2023.12.19"]
[Round "4"]
[White "Kniazev, Igor"]
[Black "Cardozo Munar, Carlos Eduardo"]
[Result "0-1"]
[Board "153"]
[TimeControl "180+1"]
[WhiteFideId "4136349"]
[BlackFideId "4409477"]
[WhiteElo "1853"]
[BlackElo "2067"]
[WhiteTeam "RUS"]
[BlackTeam "COL"]
[WhiteClock "0:00:26"]
[BlackClock "0:00:20"]

1. e4 {[%clk 0:03:00]}  e6 {[%clk 0:03:00]} 2. d4 {[%clk 0:03:00]}  d5 {[%clk 0:03:01]} 3. exd5 {[%clk 0:03:01]}  exd5 {[%clk 0:03:01]} 4. Bd3 {[%clk 0:02:59]}  Bd6 {[%clk 0:03:01]} 5. Nf3 {[%clk 0:03:00]}  Ne7 {[%clk 0:03:01]} 6. c4 {[%clk 0:03:00]}  dxc4 {[%clk 0:03:00]} 7. Bxc4 {[%clk 0:03:00]}  O-O {[%clk 0:03:01]} 8. Nc3 {[%clk 0:03:00]}  Nbc6 {[%clk 0:03:02]} 9. O-O {[%clk 0:02:58]}  a6 {[%clk 0:03:02]} 10. Ne4 {[%clk 0:02:58]}  Bg4 {[%clk 0:02:59]} 11. Nxd6 {[%clk 0:02:45]}  Qxd6 {[%clk 0:02:59]} 12. Be3 {[%clk 0:02:40]}  Nf5 {[%clk 0:02:58]} 13. d5 {[%clk 0:02:30]}  Ne5 {[%clk 0:02:52]} 14. Be2 {[%clk 0:02:28]}  Rad8 {[%clk 0:02:45]} 15. Nxe5 {[%clk 0:02:06]}  Bxe2 {[%clk 0:02:45]} 16. Qxe2 {[%clk 0:02:04]}  Qxe5 {[%clk 0:02:45]} 17. Rfd1 {[%clk 0:01:49]}  Rfe8 {[%clk 0:02:26]} 18. Rac1 {[%clk 0:01:43]}  b5 {[%clk 0:02:00]} 19. Qf3 {[%clk 0:01:35]}  Nxe3 {[%clk 0:01:58]} 20. fxe3 {[%clk 0:01:31]}  Rd7 {[%clk 0:01:45]} 21. Rc6 {[%clk 0:01:10]}  Qxb2 {[%clk 0:01:29]} 22. Rxa6 {[%clk 0:01:08]}  h6 {[%clk 0:01:26]} 23. e4 {[%clk 0:00:56]}  Qc2 {[%clk 0:01:10]} 24. Re1 {[%clk 0:00:49]}  Rxd5 {[%clk 0:01:05]} 25. Re2 {[%clk 0:00:37]}  Qc5+ {[%clk 0:00:54]} 26. Rf2 {[%clk 0:00:35]}  Rd7 {[%clk 0:00:42]} 27. Qg4 {[%clk 0:00:35]}  Red8 {[%clk 0:00:22]} 28. h4 {[%clk 0:00:31]}  Rd1+ {[%clk 0:00:20]} 29. Kh2 {[%clk 0:00:31]}  Qxf2 {[%clk 0:00:20]} 30. Rxh6 {[%clk 0:00:28]}  Qg1+ {[%clk 0:00:19]} 31. Kh3 {[%clk 0:00:28]}  Qe3+ {[%clk 0:00:19]} 32. Qg3 {[%clk 0:00:27]}  Qxh6 {[%clk 0:00:19]} 33. e5 {[%clk 0:00:26]}  R1d3 {[%clk 0:00:19]} 34. Qxd3 {[%clk 0:00:25]}  Rxd3+ {[%clk 0:00:19]} 35. g3 {[%clk 0:00:26]}  Qe3 {[%clk 0:00:19]} 36. e6 {[%clk 0:00:26]}  Qxg3# {[%clk 0:00:20]} 0-1

[Event "December 19 Late 2023"]
[Site "https://www.chess.com"]
[Date "2023.12.19"]
[Round "4"]
[White "Alamzhi21"]
[Black "De Souza, Cristiano Gomes"]
[Result "1-0"]
[Board "156"]
[TimeControl "180+1"]
[BlackFideId "2151758"]
[WhiteElo "2637"]
[BlackElo "2068"]
[BlackTeam "BRA"]
[WhiteClock "0:01:35"]
[BlackClock "0:00:49"]

1. e4 {[%clk 0:03:00]}  c5 {[%clk 0:02:46]} 2. Nf3 {[%clk 0:03:00]}  d6 {[%clk 0:02:46]} 3. Nc3 {[%clk 0:02:59]}  Nc6 {[%clk 0:02:46]} 4. g3 {[%clk 0:03:00]}  g6 {[%clk 0:02:45]} 5. Bg2 {[%clk 0:02:59]}  Bg7 {[%clk 0:02:46]} 6. O-O {[%clk 0:02:59]}  Nf6 {[%clk 0:02:45]} 7. d4 {[%clk 0:02:58]}  cxd4 {[%clk 0:02:45]} 8. Nxd4 {[%clk 0:02:59]}  O-O {[%clk 0:02:44]} 9. Nb3 {[%clk 0:02:59]}  Be6 {[%clk 0:02:44]} 10. Nd5 {[%clk 0:02:58]}  Nd7 {[%clk 0:02:42]} 11. c3 {[%clk 0:02:57]}  a5 {[%clk 0:02:42]} 12. a4 {[%clk 0:02:56]}  Nb6 {[%clk 0:02:41]} 13. Be3 {[%clk 0:02:53]}  Bxd5 {[%clk 0:02:38]} 14. exd5 {[%clk 0:02:54]}  Ne5 {[%clk 0:02:37]} 15. Nd4 {[%clk 0:02:48]}  Nbc4 {[%clk 0:02:36]} 16. Bc1 {[%clk 0:02:48]}  Nd7 {[%clk 0:02:31]} 17. Nb5 {[%clk 0:02:47]}  Nf6 {[%clk 0:02:25]} 18. b3 {[%clk 0:02:46]}  Ne5 {[%clk 0:02:24]} 19. Be3 {[%clk 0:02:42]}  Nfg4 {[%clk 0:02:20]} 20. Bd4 {[%clk 0:02:41]}  h5 {[%clk 0:02:20]} 21. c4 {[%clk 0:02:41]}  Nh6 {[%clk 0:02:17]} 22. Bh3 {[%clk 0:02:37]}  f5 {[%clk 0:02:11]} 23. f4 {[%clk 0:02:33]}  Neg4 {[%clk 0:02:11]} 24. Bxg7 {[%clk 0:02:32]}  Kxg7 {[%clk 0:02:11]} 25. Qd4+ {[%clk 0:02:32]}  Rf6 {[%clk 0:02:10]} 26. Rfe1 {[%clk 0:02:32]}  Qd7 {[%clk 0:02:09]} 27. Re6 {[%clk 0:02:29]}  Rf8 {[%clk 0:02:08]} 28. Rae1 {[%clk 0:02:28]}  Rf7 {[%clk 0:02:08]} 29. Bg2 {[%clk 0:02:24]}  Ng8 {[%clk 0:02:05]} 30. h3 {[%clk 0:02:17]}  N4h6 {[%clk 0:02:04]} 31. Qc3 {[%clk 0:02:18]}  Qd8 {[%clk 0:02:02]} 32. Nd4 {[%clk 0:02:17]}  Qb6 {[%clk 0:01:59]} 33. Kh2 {[%clk 0:02:16]}  Kh7 {[%clk 0:01:56]} 34. Nf3 {[%clk 0:02:10]}  Kg7 {[%clk 0:01:48]} 35. Ng5 {[%clk 0:02:09]}  Rf8 {[%clk 0:01:48]} 36. R1e3 {[%clk 0:01:51]}  Qc5 {[%clk 0:01:44]} 37. Rxe7+ {[%clk 0:01:44]}  Nxe7 {[%clk 0:01:15]} 38. Rxe7+ {[%clk 0:01:45]}  Kg8 {[%clk 0:01:10]} 39. Ne6 {[%clk 0:01:37]}  R8f7 {[%clk 0:00:49]} 40. Rxf7 {[%clk 0:01:35]} 1-0

[Event "December 19 Late 2023"]
[Site "https://www.chess.com"]
[Date "2023.12.19"]
[Round "4"]
[White "Malek, Omid"]
[Black "Clarke, Matthew"]
[Result "0-1"]
[Board "160"]
[TimeControl "180+1"]
[WhiteFideId "2605384"]
[BlackFideId "3227804"]
[WhiteElo "2013"]
[BlackElo "2026"]
[WhiteTeam "CAN"]
[BlackTeam "AUS"]
[WhiteClock "0:01:34"]
[BlackClock "0:00:14"]

1. d4 {[%clk 0:03:00]}  d5 {[%clk 0:02:59]} 2. Bf4 {[%clk 0:02:59]}  Nf6 {[%clk 0:02:54]} 3. e3 {[%clk 0:02:58]}  c5 {[%clk 0:02:53]} 4. c3 {[%clk 0:02:58]}  Nc6 {[%clk 0:02:50]} 5. Nd2 {[%clk 0:02:58]}  cxd4 {[%clk 0:02:41]} 6. exd4 {[%clk 0:02:58]}  Bf5 {[%clk 0:02:42]} 7. Ngf3 {[%clk 0:02:58]}  e6 {[%clk 0:02:41]} 8. Be2 {[%clk 0:02:55]}  Bd6 {[%clk 0:02:39]} 9. Bg5 {[%clk 0:02:55]}  O-O {[%clk 0:02:36]} 10. O-O {[%clk 0:02:55]}  h6 {[%clk 0:02:35]} 11. Bh4 {[%clk 0:02:55]}  a6 {[%clk 0:02:26]} 12. Re1 {[%clk 0:02:55]}  b5 {[%clk 0:02:24]} 13. Ne5 {[%clk 0:02:51]}  Nxe5 {[%clk 0:02:18]} 14. dxe5 {[%clk 0:02:51]}  Bxe5 {[%clk 0:02:18]} 15. g4 {[%clk 0:02:45]}  Bh7 {[%clk 0:01:55]} 16. g5 {[%clk 0:02:45]}  Ne4 {[%clk 0:01:29]} 17. Nf3 {[%clk 0:02:35]}  hxg5 {[%clk 0:01:28]} 18. Nxe5 {[%clk 0:02:34]}  gxh4 {[%clk 0:01:27]} 19. Nf3 {[%clk 0:02:31]}  Qf6 {[%clk 0:01:08]} 20. Rf1 {[%clk 0:02:26]}  Bf5 {[%clk 0:01:05]} 21. Kh1 {[%clk 0:02:26]}  Bh3 {[%clk 0:01:00]} 22. Qd3 {[%clk 0:02:22]}  Bxf1 {[%clk 0:00:59]} 23. Rxf1 {[%clk 0:02:21]}  Rfb8 {[%clk 0:00:43]} 24. Qe3 {[%clk 0:02:20]}  a5 {[%clk 0:00:40]} 25. Rg1 {[%clk 0:02:19]}  b4 {[%clk 0:00:33]} 26. cxb4 {[%clk 0:02:16]}  axb4 {[%clk 0:00:34]} 27. b3 {[%clk 0:02:14]}  Rxa2 {[%clk 0:00:33]} 28. h3 {[%clk 0:02:11]}  Rc8 {[%clk 0:00:32]} 29. Rg2 {[%clk 0:01:58]}  Rcc2 {[%clk 0:00:30]} 30. Bd3 {[%clk 0:01:48]}  Rxf2 {[%clk 0:00:26]} 31. Bxe4 {[%clk 0:01:48]}  Rxg2 {[%clk 0:00:25]} 32. Bxd5 {[%clk 0:01:38]}  exd5 {[%clk 0:00:21]} 33. Qe8+ {[%clk 0:01:38]}  Kh7 {[%clk 0:00:21]} 34. Ng5+ {[%clk 0:01:38]}  Kg6 {[%clk 0:00:14]} 35. Qe1 {[%clk 0:01:35]}  Rh2+ {[%clk 0:00:13]} 36. Kg1 {[%clk 0:01:34]}  Rag2# {[%clk 0:00:14]} 0-1